[Event "DVM U10 2024"]
[Site "Duesseldorf"]
[Date "2024.12.28"]
[Round "4"]
[White "Hu, Yinuo"]
[Black "Klaus, Simon"]
[Result "1-0"]
[ECO "B01"]
[WhiteElo "1495"]
[BlackElo "1197"]
[Annotator "NA"]
[PlyCount "125"]
[EventDate "2024.12.23"]
[EventType "team-tourn"]
[EventRounds "7"]
[EventCountry "GER"]
[SourceTitle "playchess.com"]
[Source "ChessBase"]
[SourceQuality "1"]
[TimeControl "3300+5"]

1. e4 {[%emt 0:00:01]} d5 {[%emt 0:00:01]} 2. exd5 {[%emt 0:00:11]} Qxd5 {[%emt 0:00:10]} 3. Nc3 {[%emt 0:00:12]} Qa5 {[%emt 0:00:09]} 4. d4 {[%emt 0:00:12]} Nf6 {[%emt 0:00:09]} 5. Nf3 {[%emt 0:00:09]} Bg4 {[%emt 0:00:09]} 6. h3 {[%emt 0:00:11]} Bxf3 {[%emt 0:00:14]} 7. Qxf3 {[%emt 0:00:14]} c6 {[%emt 0:00:14]} 8. Bc4 {[%emt 0:00:20]} Nbd7 {[%emt 0:00:32]} 9. Bd2 {[%emt 0:00:17]} e6 {[%emt 0:00:27]} 10. O-O-O {[%emt 0:00:16]} Bb4 {[%emt 0:00:20]} 11. a3 {[%emt 0:00:42]} Bxc3 {[%emt 0:00:22]} 12. Bxc3 {[%emt 0:00:10]} Qc7 {[%emt 0:00:21]} 13. Bb4 {[%emt 0:01:31]} O-O-O {[%emt 0:01:08]} 14. Rhe1 {[%emt 0:03:31]} Rhe8 {[%emt 0:01:03]} 15. Qc3 {[%emt 0:00:49]} Qf4+ {[%emt 0:00:50]} 16. Qd2 {[%emt 0:00:30]} Qxd2+ {[%emt 0:00:56]} 17. Rxd2 {[%emt 0:00:24]} Nb6 {[%emt 0:00:59]} 18. Bb3 {[%emt 0:01:00]} Nbd5 {[%emt 0:01:08]} 19. Bxd5 {[%emt 0:00:32]} Nxd5 {[%emt 0:00:29]} 20. g3 {[%emt 0:03:31]} Nxb4 {[%emt 0:01:06]} 21. axb4 {[%emt 0:00:20]} Rd5 {[%emt 0:00:09]} 22. c3 {[%emt 0:00:37]} Red8 {[%emt 0:01:32]} 23. Re3 {[%emt 0:00:58]} f6 {[%emt 0:01:12]} 24. Rxe6 {[%emt 0:00:19]} Kd7 {[%emt 0:01:18]} 25. Rde2 {[%emt 0:00:52]} Kc8 {[%emt 0:01:14]} 26. Re7 {[%emt 0:00:31]} R8d7 {[%emt 0:02:15]} 27. Re8+ {[%emt 0:01:36]} Kc7 {[%emt 0:00:14]} 28. R8e7 {[%emt 0:00:15]} b5 {[%emt 0:00:56]} 29. h4 {[%emt 0:00:34]} Rxe7 {[%emt 0:00:38]} 30. Rxe7+ {[%emt 0:00:06]} Rd7 {[%emt 0:00:09]} 31. Rxd7+ {[%emt 0:00:07]} Kxd7 {[%emt 0:00:12]} 32. f4 {[%emt 0:00:30]} Ke6 {[%emt 0:00:09]} 33. g4 {[%emt 0:00:32]} Kd5 {[%emt 0:00:10]} 34. g5 {[%emt 0:00:22]} Ke4 {[%emt 0:00:20]} 35. gxf6 {[%emt 0:00:41]} gxf6 {[%emt 0:00:10]} 36. Kd2 {[%emt 0:00:47]} Kxf4 {[%emt 0:00:07]} 37. h5 {[%emt 0:00:09]} h6 {[%emt 0:01:15]} 38. b3 {[%emt 0:00:12]} Kf3 {[%emt 0:00:32]} 39. c4 {[%emt 0:00:07]} Ke4 {[%emt 0:00:49]} 40. Kc3 {[%emt 0:00:07]} f5 {[%emt 0:00:16]} 41. d5 {[%emt 0:00:14]} cxd5 {[%emt 0:00:16]} 42. c5 {[%emt 0:00:11]} d4+ {[%emt 0:00:36]} 43. Kd2 {[%emt 0:00:14]} Kd5 {[%emt 0:00:45]} 44. Kd3 {[%emt 0:00:40]} a5 {[%emt 0:03:00]} 45. bxa5 {[%emt 0:00:25]} Kxc5 {[%emt 0:00:08]} 46. b4+ {[%emt 0:00:31]} Kd5 {[%emt 0:00:58]} 47. a6 {[%emt 0:00:15]} Kc6 {[%emt 0:00:14]} 48. a7 {[%emt 0:00:23]} Kb7 {[%emt 0:00:08]} 49. Kxd4 {[%emt 0:00:11]} Kxa7 {[%emt 0:03:40]} 50. Ke5 {[%emt 0:00:06]} f4 {[%emt 0:01:22]} 51. Kxf4 {[%emt 0:00:06]} Kb6 {[%emt 0:00:06]} 52. Kf5 {[%emt 0:00:40]} Kc6 {[%emt 0:00:07]} 53. Kg6 {[%emt 0:00:07]} Kd5 {[%emt 0:00:07]} 54. Kxh6 {[%emt 0:00:11]} Kc4 {[%emt 0:00:01]} 55. Kg7 {[%emt 0:00:08]} Kxb4 {[%emt 0:00:06]} 56. h6 {[%emt 0:00:04]} Ka3 {[%emt 0:00:12]} 57. h7 {[%emt 0:00:13]} b4 {[%emt 0:00:05]} 58. h8=Q {[%emt 0:00:06]} b3 {[%emt 0:00:14]} 59. Qh1 {[%emt 0:00:46]} b2 {[%emt 0:00:14]} 60. Qb1 {[%emt 0:00:03]} Kb3 {[%emt 0:00:11]} 61. Kf6 {[%emt 0:00:10]} Kc3 {[%emt 0:01:48]} 62. Ke5 {[%emt 0:00:08]} Kb3 {[%emt 0:01:58]} 63. Kd4 {[%emt 0:00:40]} 1-0

[Event "DVM U10 2024"]
[Site "Duesseldorf"]
[Date "2024.12.28"]
[Round "4"]
[White "Bienbeck, Matthis"]
[Black "Dintinger, Ata Lucien"]
[Result "1-0"]
[ECO "C90"]
[WhiteElo "1490"]
[BlackElo "1511"]
[Annotator "NA"]
[PlyCount "125"]
[EventDate "2024.12.23"]
[EventType "team-tourn"]
[EventRounds "7"]
[EventCountry "GER"]
[SourceTitle "playchess.com"]
[Source "ChessBase"]
[SourceQuality "1"]
[TimeControl "3300+5"]

1. e4 {[%emt 0:00:02]} e5 {[%emt 0:00:01]} 2. Nf3 {[%emt 0:00:05]} Nc6 {[%emt 0:00:09]} 3. Bb5 {[%emt 0:00:08]} a6 {[%emt 0:00:13]} 4. Ba4 {[%emt 0:00:05]} Nf6 {[%emt 0:00:06]} 5. O-O {[%emt 0:00:06]} Be7 {[%emt 0:00:08]} 6. Re1 {[%emt 0:00:30]} b5 {[%emt 0:00:11]} 7. Bb3 {[%emt 0:00:08]} d6 {[%emt 0:00:12]} 8. c3 {[%emt 0:00:15]} O-O {[%emt 0:00:33]} 9. d3 {[%emt 0:00:17]} Na5 {[%emt 0:01:40]} 10. Bc2 {[%emt 0:00:32]} c5 {[%emt 0:00:29]} 11. Nbd2 {[%emt 0:00:20]} Nc6 {[%emt 0:00:47]} 12. Nf1 {[%emt 0:00:11]} Bg4 {[%emt 0:01:36]} 13. Ne3 {[%emt 0:02:03]} Bd7 {[%emt 0:01:24]} 14. h3 {[%emt 0:01:36]} Qc8 {[%emt 0:03:13]} 15. Kh2 {[%emt 0:03:46]} Nd8 {[%emt 0:01:21]} 16. Nf1 {[%emt 0:02:26]} Ne6 {[%emt 0:00:38]} 17. Qe2 {[%emt 0:01:13]} Nf4 {[%emt 0:00:37]} 18. Bxf4 {[%emt 0:00:12]} exf4 {[%emt 0:00:07]} 19. Rad1 {[%emt 0:00:36]} Re8 {[%emt 0:00:34]} 20. Qd2 {[%emt 0:02:21]} Nh5 {[%emt 0:05:43]} 21. d4 {[%emt 0:03:07]} Rd8 {[%emt 0:01:26]} 22. Qd3 {[%emt 0:01:16]} c4 {[%emt 0:01:01]} 23. Qe2 {[%emt 0:00:51]} h6 {[%emt 0:06:10]} 24. e5 {[%emt 0:01:24]} d5 {[%emt 0:00:20]} 25. Ng1 {[%emt 0:05:57]} g6 {[%emt 0:01:04]} 26. e6 {[%emt 0:09:31]} Bxe6 {[%emt 0:01:52]} 27. Bxg6 {[%emt 0:00:26]} fxg6 {[%emt 0:00:30]} 28. Qxe6+ {[%emt 0:00:12]} Qxe6 {[%emt 0:00:09]} 29. Rxe6 {[%emt 0:00:09]} Kf7 {[%emt 0:00:21]} 30. Rde1 {[%emt 0:00:27]} Re8 {[%emt 0:00:21]} 31. Nf3 {[%emt 0:00:45]} Bf6 {[%emt 0:00:28]} 32. Rxe8 {[%emt 0:01:56]} Rxe8 {[%emt 0:00:22]} 33. Rxe8 {[%emt 0:00:31]} Kxe8 {[%emt 0:00:06]} 34. g4 {[%emt 0:00:17]} Ng7 {[%emt 0:00:12]} 35. h4 {[%emt 0:00:28]} Kd7 {[%emt 0:00:53]} 36. g5 {[%emt 0:00:28]} hxg5 {[%emt 0:00:20]} 37. hxg5 {[%emt 0:00:11]} Be7 {[%emt 0:00:07]} 38. Kh3 {[%emt 0:00:12]} Ke6 {[%emt 0:00:19]} 39. Kg4 {[%emt 0:00:09]} Nh5 {[%emt 0:00:25]} 40. Ne5 {[%emt 0:00:44]} Bd6 {[%emt 0:01:27]} 41. Nxg6 {[%emt 0:00:37]} Ng7 {[%emt 0:00:11]} 42. Nh4 {[%emt 0:00:41]} a5 {[%emt 0:00:39]} 43. Ng2 {[%emt 0:01:07]} b4 {[%emt 0:00:16]} 44. Nxf4+ {[%emt 0:00:12]} Bxf4 {[%emt 0:01:10]} 45. Kxf4 {[%emt 0:00:14]} Nf5 {[%emt 0:00:37]} 46. Kg4 {[%emt 0:00:30]} a4 {[%emt 0:00:15]} 47. a3 {[%emt 0:00:54]} b3 {[%emt 0:00:30]} 48. Ne3 {[%emt 0:00:26]} Ng7 {[%emt 0:00:14]} 49. f4 {[%emt 0:00:15]} Ne8 {[%emt 0:00:37]} 50. f5+ {[%emt 0:00:09]} Kd6 {[%emt 0:00:08]} 51. g6 {[%emt 0:00:32]} Ng7 {[%emt 0:01:25]} 52. Kg5 {[%emt 0:00:22]} Ne8 {[%emt 0:00:52]} 53. f6 {[%emt 0:00:34]} Nc7 {[%emt 0:01:11]} 54. g7 {[%emt 0:00:08]} Ne6+ {[%emt 0:00:44]} 55. Kf5 {[%emt 0:00:12]} Nc7 {[%emt 0:01:33]} 56. g8=Q {[%emt 0:00:11]} Kc6 {[%emt 0:00:10]} 57. Qe6+ {[%emt 0:00:22]} Nxe6 {[%emt 0:00:31]} 58. Kxe6 {[%emt 0:00:06]} Kc7 {[%emt 0:00:11]} 59. f7 {[%emt 0:00:06]} Kc6 {[%emt 0:00:07]} 60. f8=Q {[%emt 0:00:26]} Kc7 {[%emt 0:00:05]} 61. Qc8+ {[%emt 0:00:15]} Kb6 {[%emt 0:00:31]} 62. Kd6 {[%emt 0:00:25]} Ka5 {[%emt 0:00:28]} 63. Nxd5 {[%emt 0:00:11]} 1-0

[Event "DVM U10 2024"]
[Site "Duesseldorf"]
[Date "2024.12.28"]
[Round "4"]
[White "Yuksel, Arda Eren"]
[Black "Gerhardt, Noah"]
[Result "0-1"]
[ECO "C66"]
[WhiteElo "1488"]
[BlackElo "1140"]
[Annotator "NA"]
[PlyCount "72"]
[EventDate "2024.12.23"]
[EventType "team-tourn"]
[EventRounds "7"]
[EventCountry "GER"]
[SourceTitle "playchess.com"]
[Source "ChessBase"]
[SourceQuality "1"]
[TimeControl "3300+5"]

1. e4 {[%emt 0:00:03]} e5 {[%emt 0:00:05]} 2. Nf3 {[%emt 0:00:21]} Nc6 {[%emt 0:00:10]} 3. Bb5 {[%emt 0:00:07]} Nf6 {[%emt 0:00:23]} 4. O-O {[%emt 0:00:23]} d6 {[%emt 0:01:44]} 5. Re1 {[%emt 0:00:21]} Bd7 {[%emt 0:00:13]} 6. c3 {[%emt 0:00:29]} Be7 {[%emt 0:00:45]} 7. d4 {[%emt 0:00:44]} O-O {[%emt 0:00:55]} 8. d5 {[%emt 0:01:07]} Nb8 {[%emt 0:00:27]} 9. Bxd7 {[%emt 0:00:46]} Nbxd7 {[%emt 0:00:21]} 10. Bg5 {[%emt 0:02:29]} h6 {[%emt 0:00:13]} 11. Bh4 {[%emt 0:00:18]} c6 {[%emt 0:00:53]} 12. c4 {[%emt 0:01:31]} Qb6 {[%emt 0:01:09]} 13. b3 {[%emt 0:00:49]} cxd5 {[%emt 0:00:16]} 14. cxd5 {[%emt 0:01:46]} Rfe8 {[%emt 0:00:34]} 15. Nc3 {[%emt 0:02:16]} Qb4 {[%emt 0:01:22]} 16. Rc1 {[%emt 0:01:33]} Rac8 {[%emt 0:00:52]} 17. Qc2 {[%emt 0:03:37]} Rc7 {[%emt 0:01:15]} 18. h3 {[%emt 0:01:57]} Kf8 {[%emt 0:01:05]} 19. Re3 {[%emt 0:02:42]} Rec8 {[%emt 0:00:33]} 20. Nd2 {[%emt 0:01:37]} g5 {[%emt 0:00:57]} 21. Bg3 {[%emt 0:00:56]} Nh5 {[%emt 0:01:23]} 22. Kf1 {[%emt 0:04:06]} Nxg3+ {[%emt 0:00:35]} 23. Rxg3 {[%emt 0:00:33]} Qb5+ {[%emt 0:01:32]} 24. Kg1 {[%emt 0:02:24]} Qb4 {[%emt 0:00:38]} 25. Qb2 {[%emt 0:02:01]} Nb6 {[%emt 0:00:35]} 26. a3 {[%emt 0:00:59]} Qd4 {[%emt 0:01:52]} 27. Qc2 {[%emt 0:04:45]} Qc5 {[%emt 0:00:26]} 28. b4 {[%emt 0:00:58]} Qb5 {[%emt 0:00:45]} 29. Rd3 {[%emt 0:02:35]} Qd7 {[%emt 0:02:42]} 30. Rf3 {[%emt 0:02:11]} f6 {[%emt 0:00:00]} 31. Nb3 {[%emt 0:00:41]} Na4 {[%emt 0:00:00]} 32. Na5 {[%emt 0:00:58]} Nxc3 {[%emt 0:00:04]} 33. Re3 {[%emt 0:02:37]} Nxd5 {[%emt 0:00:37]} 34. Re2 {[%emt 0:01:03]} Rxc2 {[%emt 0:00:12]} 35. Rexc2 {[%emt 0:00:06]} Rxc2 {[%emt 0:00:15]} 36. Rxc2 {[%emt 0:00:05]} Nb6 {[%emt 0:00:24]} 0-1

[Event "DVM U10 2024"]
[Site "Duesseldorf"]
[Date "2024.12.28"]
[Round "4"]
[White "von Gehlen, Elian"]
[Black "Braren, Ove Neelis"]
[Result "0-1"]
[ECO "C29"]
[WhiteElo "1464"]
[BlackElo "1634"]
[Annotator "NA"]
[PlyCount "100"]
[EventDate "2024.12.23"]
[EventType "team-tourn"]
[EventRounds "7"]
[EventCountry "GER"]
[SourceTitle "playchess.com"]
[Source "ChessBase"]
[SourceQuality "1"]
[TimeControl "3300+5"]

1. e4 {[%emt 0:00:01]} e5 {[%emt 0:00:04]} 2. Nc3 {[%emt 0:00:06]} Nf6 {[%emt 0:00:10]} 3. f4 {[%emt 0:00:06]} d5 {[%emt 0:00:14]} 4. fxe5 {[%emt 0:00:08]} Nxe4 {[%emt 0:00:11]} 5. Qf3 {[%emt 0:00:23]} Nxc3 {[%emt 0:00:07]} 6. dxc3 {[%emt 0:00:06]} c5 {[%emt 0:02:45]} 7. Bf4 {[%emt 0:01:31]} Be6 {[%emt 0:00:29]} 8. O-O-O {[%emt 0:00:42]} Nc6 {[%emt 0:01:02]} 9. Bc4 {[%emt 0:02:58]} Qc8 {[%emt 0:05:35]} 10. Be2 {[%emt 0:03:49]} Be7 {[%emt 0:02:04]} 11. Qg3 {[%emt 0:00:34]} g6 {[%emt 0:01:57]} 12. Bf3 {[%emt 0:02:28]} Qd7 {[%emt 0:05:10]} 13. c4 {[%emt 0:00:36]} d4 {[%emt 0:00:19]} 14. b3 {[%emt 0:02:40]} O-O-O {[%emt 0:02:02]} 15. Nh3 {[%emt 0:02:34]} h6 {[%emt 0:07:51]} 16. Nf2 {[%emt 0:05:47]} Qc7 {[%emt 0:04:22]} 17. Nd3 {[%emt 0:02:29]} Qb6 {[%emt 0:04:05]} 18. Bg4 {[%emt 0:01:39]} g5 {[%emt 0:01:34]} 19. Bxe6+ {[%emt 0:00:35]} fxe6 {[%emt 0:00:01]} 20. Bd2 {[%emt 0:01:10]} Qc7 {[%emt 0:01:21]} 21. Rhf1 {[%emt 0:01:24]} Rdf8 {[%emt 0:01:19]} 22. Qh3 {[%emt 0:01:02]} Qd7 {[%emt 0:01:31]} 23. Rxf8+ {[%emt 0:00:55]} Bxf8 {[%emt 0:00:20]} 24. Bxg5 {[%emt 0:01:34]} Be7 {[%emt 0:04:15]} 25. Bxe7 {[%emt 0:01:17]} Qxe7 {[%emt 0:00:04]} 26. Nf4 {[%emt 0:02:57]} Nd8 {[%emt 0:00:24]} 27. Kb2 {[%emt 0:00:40]} Qf7 {[%emt 0:00:58]} 28. g3 {[%emt 0:01:17]} Rh7 {[%emt 0:00:54]} 29. Rf1 {[%emt 0:01:23]} h5 {[%emt 0:00:55]} 30. Nd5 {[%emt 0:01:10]} Qg7 {[%emt 0:00:48]} 31. Nf6 {[%emt 0:01:04]} Rh6 {[%emt 0:00:33]} 32. Nxh5 {[%emt 0:00:49]} Qxe5 {[%emt 0:00:04]} 33. g4 {[%emt 0:00:20]} d3+ {[%emt 0:00:29]} 34. Kb1 {[%emt 0:02:08]} d2 {[%emt 0:00:29]} 35. Rd1 {[%emt 0:00:59]} Qe2 {[%emt 0:00:19]} 36. Qf1 {[%emt 0:03:09]} Qxg4 {[%emt 0:00:04]} 37. Nf4 {[%emt 0:02:06]} Rf6 {[%emt 0:00:20]} 38. Qd3 {[%emt 0:00:37]} Qxd1+ {[%emt 0:00:12]} 39. Kb2 {[%emt 0:00:13]} Qc1+ {[%emt 0:00:02]} 40. Kc3 {[%emt 0:00:05]} d1=Q {[%emt 0:00:06]} 41. Qxd1 {[%emt 0:00:04]} Qxd1 {[%emt 0:00:02]} 42. Kb2 {[%emt 0:00:04]} Rxf4 {[%emt 0:00:01]} 43. h4 {[%emt 0:00:03]} Qd4+ {[%emt 0:00:04]} 44. Ka3 {[%emt 0:00:03]} Rxh4 {[%emt 0:00:04]} 45. Ka4 {[%emt 0:00:03]} b5+ {[%emt 0:00:03]} 46. Ka5 {[%emt 0:00:02]} Nb7+ {[%emt 0:00:02]} 47. Kxb5 {[%emt 0:00:04]} Qd7+ {[%emt 0:00:01]} 48. Ka6 {[%emt 0:00:04]} Qc6+ {[%emt 0:00:03]} 49. Kxa7 {[%emt 0:00:07]} Na5 {[%emt 0:00:06]} 50. b4 {[%emt 0:00:04]} Qb7# {[%emt 0:00:18]} 0-1

[Event "DVM U10 2024"]
[Site "Duesseldorf"]
[Date "2024.12.28"]
[Round "4"]
[White "von Gehlen, Samuel"]
[Black "Zhukov, Eli"]
[Result "1-0"]
[ECO "C29"]
[WhiteElo "1459"]
[BlackElo "1018"]
[Annotator "NA"]
[PlyCount "97"]
[EventDate "2024.12.23"]
[EventType "team-tourn"]
[EventRounds "7"]
[EventCountry "GER"]
[SourceTitle "playchess.com"]
[Source "ChessBase"]
[SourceQuality "1"]
[TimeControl "3300+5"]

1. e4 {[%emt 0:00:01]} e5 {[%emt 0:00:07]} 2. Nc3 {[%emt 0:00:08]} Nf6 {[%emt 0:00:06]} 3. f4 {[%emt 0:00:09]} d5 {[%emt 0:00:21]} 4. fxe5 {[%emt 0:00:08]} Nxe4 {[%emt 0:00:10]} 5. Qf3 {[%emt 0:00:07]} Nxc3 {[%emt 0:00:11]} 6. dxc3 {[%emt 0:00:10]} c5 {[%emt 0:00:17]} 7. Qg3 {[%emt 0:00:10]} Nc6 {[%emt 0:01:11]} 8. Bb5 {[%emt 0:00:26]} Qb6 {[%emt 0:00:17]} 9. Bxc6+ {[%emt 0:00:25]} Qxc6 {[%emt 0:00:13]} 10. Nf3 {[%emt 0:00:15]} Be6 {[%emt 0:00:55]} 11. O-O {[%emt 0:00:22]} O-O-O {[%emt 0:01:17]} 12. Bg5 {[%emt 0:00:29]} Rd7 {[%emt 0:00:28]} 13. a4 {[%emt 0:00:28]} h6 {[%emt 0:01:02]} 14. Be3 {[%emt 0:00:20]} g5 {[%emt 0:00:48]} 15. a5 {[%emt 0:00:47]} f5 {[%emt 0:00:30]} 16. exf6 {[%emt 0:00:18]} Bd6 {[%emt 0:00:51]} 17. Ne5 {[%emt 0:00:31]} Bxe5 {[%emt 0:00:42]} 18. Qxe5 {[%emt 0:00:15]} Bf7 {[%emt 0:04:51]} 19. Bf2 {[%emt 0:01:38]} Re8 {[%emt 0:03:59]} 20. Qf5 {[%emt 0:01:44]} g4 {[%emt 0:00:45]} 21. Qxg4 {[%emt 0:00:21]} Rg8 {[%emt 0:02:14]} 22. Qf4 {[%emt 0:00:45]} d4 {[%emt 0:01:50]} 23. Bg3 {[%emt 0:00:15]} Qc7 {[%emt 0:03:04]} 24. Qxc7+ {[%emt 0:00:13]} Rxc7 {[%emt 0:00:17]} 25. Bxc7 {[%emt 0:00:01]} Kxc7 {[%emt 0:00:11]} 26. Rae1 {[%emt 0:00:14]} Kd7 {[%emt 0:00:30]} 27. Re7+ {[%emt 0:00:10]} Kd8 {[%emt 0:00:28]} 28. Rxf7 {[%emt 0:00:09]} dxc3 {[%emt 0:00:42]} 29. bxc3 {[%emt 0:00:09]} Kc8 {[%emt 0:00:22]} 30. Rg7 {[%emt 0:00:23]} Rf8 {[%emt 0:00:29]} 31. f7 {[%emt 0:00:10]} Kc7 {[%emt 0:00:15]} 32. Rg8 {[%emt 0:00:07]} Rxf7 {[%emt 0:00:34]} 33. Rxf7+ {[%emt 0:00:18]} Kc6 {[%emt 0:00:09]} 34. Rf6+ {[%emt 0:00:16]} Kb5 {[%emt 0:00:09]} 35. Rxh6 {[%emt 0:00:10]} b6 {[%emt 0:00:25]} 36. axb6 {[%emt 0:00:11]} axb6 {[%emt 0:00:08]} 37. g4 {[%emt 0:00:05]} Kc4 {[%emt 0:00:29]} 38. Rh3 {[%emt 0:00:26]} Kd5 {[%emt 0:00:18]} 39. g5 {[%emt 0:00:14]} Ke6 {[%emt 0:00:30]} 40. Rf3 {[%emt 0:00:11]} Ke7 {[%emt 0:00:24]} 41. g6 {[%emt 0:00:09]} Ke6 {[%emt 0:00:23]} 42. g7 {[%emt 0:00:14]} Kd5 {[%emt 0:00:17]} 43. Rd8+ {[%emt 0:00:15]} Kc4 {[%emt 0:00:18]} 44. g8=Q+ {[%emt 0:00:15]} Kb5 {[%emt 0:00:08]} 45. Qb3+ {[%emt 0:00:26]} Kc6 {[%emt 0:00:57]} 46. Qd5+ {[%emt 0:00:09]} Kb5 {[%emt 0:00:20]} 47. c4+ {[%emt 0:00:11]} Kb4 {[%emt 0:00:25]} 48. Rb3+ {[%emt 0:00:16]} Ka4 {[%emt 0:00:26]} 49. Qa8# {[%emt 0:00:06]} 1-0

[Event "DVM U10 2024"]
[Site "Duesseldorf"]
[Date "2024.12.28"]
[Round "4"]
[White "Wilting, Oskar"]
[Black "Sandal, Ilyas"]
[Result "1-0"]
[ECO "D00"]
[WhiteElo "1454"]
[BlackElo "943"]
[Annotator "NA"]
[PlyCount "121"]
[EventDate "2024.12.23"]
[EventType "team-tourn"]
[EventRounds "7"]
[EventCountry "GER"]
[SourceTitle "playchess.com"]
[Source "ChessBase"]
[SourceQuality "1"]
[TimeControl "3300+5"]

1. d4 {[%emt 0:00:03]} d5 {[%emt 0:00:03]} 2. Nc3 {[%emt 0:00:05]} c5 {[%emt 0:00:05]} 3. e3 {[%emt 0:03:11]} Nc6 {[%emt 0:01:32]} 4. Be2 {[%emt 0:02:52]} Nf6 {[%emt 0:01:00]} 5. Nf3 {[%emt 0:02:19]} Bg4 {[%emt 0:02:02]} 6. h3 {[%emt 0:01:57]} Bh5 {[%emt 0:00:51]} 7. g4 {[%emt 0:00:47]} Bg6 {[%emt 0:00:21]} 8. Ne5 {[%emt 0:02:19]} Nxe5 {[%emt 0:05:02]} 9. dxe5 {[%emt 0:00:11]} Be4 {[%emt 0:00:13]} 10. f3 {[%emt 0:00:17]} d4 {[%emt 0:00:51]} 11. exf6 {[%emt 0:01:15]} dxc3 {[%emt 0:00:13]} 12. fxe4 {[%emt 0:00:40]} Qa5 {[%emt 0:01:11]} 13. bxc3 {[%emt 0:01:51]} Qxc3+ {[%emt 0:01:30]} 14. Kf2 {[%emt 0:00:31]} a6 {[%emt 0:01:28]} 15. Bd2 {[%emt 0:01:13]} Qxf6+ {[%emt 0:00:40]} 16. Bf3 {[%emt 0:00:37]} Rd8 {[%emt 0:03:32]} 17. Rb1 {[%emt 0:01:11]} b5 {[%emt 0:01:01]} 18. e5 {[%emt 0:03:45]} Qe6 {[%emt 0:01:49]} 19. Qe1 {[%emt 0:01:43]} g6 {[%emt 0:03:37]} 20. Rd1 {[%emt 0:03:47]} Bh6 {[%emt 0:01:16]} 21. Ba5 {[%emt 0:01:44]} Rxd1 {[%emt 0:00:15]} 22. Qxd1 {[%emt 0:00:16]} O-O {[%emt 0:00:19]} 23. Qd5 {[%emt 0:02:01]} Bg7 {[%emt 0:01:14]} 24. Qxe6 {[%emt 0:00:32]} fxe6 {[%emt 0:00:09]} 25. Bc3 {[%emt 0:00:14]} b4 {[%emt 0:00:29]} 26. Bb2 {[%emt 0:00:43]} a5 {[%emt 0:00:59]} 27. Rd1 {[%emt 0:01:22]} a4 {[%emt 0:01:21]} 28. Rd7 {[%emt 0:01:17]} a3 {[%emt 0:01:01]} 29. Ba1 {[%emt 0:00:21]} c4 {[%emt 0:04:04]} 30. Bd4 {[%emt 0:00:31]} b3 {[%emt 0:01:09]} 31. axb3 {[%emt 0:01:54]} cxb3 {[%emt 0:00:27]} 32. cxb3 {[%emt 0:00:09]} Rb8 {[%emt 0:00:24]} 33. Rb7 {[%emt 0:01:47]} Ra8 {[%emt 0:00:59]} 34. Rb4 {[%emt 0:00:17]} Rc8 {[%emt 0:01:00]} 35. Rc4 {[%emt 0:00:33]} Rb8 {[%emt 0:00:20]} 36. b4 {[%emt 0:00:31]} a2 {[%emt 0:00:53]} 37. Rc2 {[%emt 0:00:50]} Rxb4 {[%emt 0:00:21]} 38. Rxa2 {[%emt 0:00:06]} Kf7 {[%emt 0:00:56]} 39. Ra5 {[%emt 0:00:37]} Rc4 {[%emt 0:00:45]} 40. Rc5 {[%emt 0:00:25]} Rxc5 {[%emt 0:00:46]} 41. Bxc5 {[%emt 0:00:07]} Bxe5 {[%emt 0:00:07]} 42. Bd4 {[%emt 0:00:12]} Bxd4 {[%emt 0:00:28]} 43. exd4 {[%emt 0:00:08]} Kf6 {[%emt 0:00:05]} 44. Ke3 {[%emt 0:00:57]} h6 {[%emt 0:00:44]} 45. Kf4 {[%emt 0:00:27]} g5+ {[%emt 0:00:43]} 46. Ke4 {[%emt 0:00:14]} Kg6 {[%emt 0:00:28]} 47. Ke5 {[%emt 0:00:12]} Kf7 {[%emt 0:00:10]} 48. Be2 {[%emt 0:00:17]} Ke8 {[%emt 0:00:29]} 49. Bb5+ {[%emt 0:00:16]} Kf7 {[%emt 0:00:18]} 50. Ba4 {[%emt 0:00:08]} Kg7 {[%emt 0:00:22]} 51. Kxe6 {[%emt 0:00:15]} Kf8 {[%emt 0:00:01]} 52. Bb5 {[%emt 0:00:12]} Kg7 {[%emt 0:00:10]} 53. Kxe7 {[%emt 0:00:07]} Kg6 {[%emt 0:00:10]} 54. Be2 {[%emt 0:00:14]} h5 {[%emt 0:00:28]} 55. d5 {[%emt 0:00:09]} hxg4 {[%emt 0:00:10]} 56. hxg4 {[%emt 0:00:07]} Kg7 {[%emt 0:00:06]} 57. d6 {[%emt 0:00:07]} Kh7 {[%emt 0:00:15]} 58. d7 {[%emt 0:00:11]} Kg6 {[%emt 0:01:04]} 59. d8=Q {[%emt 0:00:08]} Kh7 {[%emt 0:00:40]} 60. Bd3+ {[%emt 0:00:12]} Kh6 {[%emt 0:00:31]} 61. Qf8# {[%emt 0:00:13]} 1-0

[Event "DVM U10 2024"]
[Site "Duesseldorf"]
[Date "2024.12.28"]
[Round "4"]
[White "Glavev, Victor"]
[Black "Benischke, Moritz"]
[Result "1-0"]
[ECO "C56"]
[WhiteElo "1443"]
[BlackElo "1421"]
[Annotator "NA"]
[PlyCount "91"]
[EventDate "2024.12.23"]
[EventType "team-tourn"]
[EventRounds "7"]
[EventCountry "GER"]
[SourceTitle "playchess.com"]
[Source "ChessBase"]
[SourceQuality "1"]
[TimeControl "3300+5"]

1. e4 {[%emt 0:00:00]} e5 {[%emt 0:00:07]} 2. Nf3 {[%emt 0:00:02]} Nc6 {[%emt 0:00:14]} 3. d4 {[%emt 0:00:03]} exd4 {[%emt 0:00:13]} 4. Bc4 {[%emt 0:00:05]} Nf6 {[%emt 0:00:39]} 5. e5 {[%emt 0:00:13]} Ne4 {[%emt 0:01:05]} 6. Bd5 {[%emt 0:00:29]} Nc5 {[%emt 0:00:57]} 7. Ng5 {[%emt 0:00:36]} Nxe5 {[%emt 0:00:41]} 8. Qxd4 {[%emt 0:00:58]} f6 {[%emt 0:01:12]} 9. Nf3 {[%emt 0:00:26]} Nxf3+ {[%emt 0:01:17]} 10. Bxf3 {[%emt 0:00:10]} c6 {[%emt 0:00:41]} 11. O-O {[%emt 0:00:10]} Be7 {[%emt 0:00:44]} 12. Qg4 {[%emt 0:00:30]} O-O {[%emt 0:00:42]} 13. Bh6 {[%emt 0:00:08]} Rf7 {[%emt 0:00:38]} 14. Qg3 {[%emt 0:01:04]} d5 {[%emt 0:00:46]} 15. Bh5 {[%emt 0:00:39]} g6 {[%emt 0:00:37]} 16. Bg4 {[%emt 0:01:55]} Bd6 {[%emt 0:00:00]} 17. Qh4 {[%emt 0:00:26]} Bxg4 {[%emt 0:01:43]} 18. Qxg4 {[%emt 0:00:30]} Qc7 {[%emt 0:01:29]} 19. h3 {[%emt 0:08:00]} Qb6 {[%emt 0:02:27]} 20. b3 {[%emt 0:01:34]} Be5 {[%emt 0:00:23]} 21. c3 {[%emt 0:01:41]} Qa6 {[%emt 0:00:50]} 22. f4 {[%emt 0:03:42]} f5 {[%emt 0:01:26]} 23. Qf3 {[%emt 0:02:55]} Bd6 {[%emt 0:00:50]} 24. Re1 {[%emt 0:10:48]} Nxb3 {[%emt 0:00:22]} 25. Nd2 {[%emt 0:00:35]} Nxa1 {[%emt 0:00:26]} 26. Rxa1 {[%emt 0:00:57]} Bc5+ {[%emt 0:00:56]} 27. Kh2 {[%emt 0:00:55]} Qa3 {[%emt 0:00:57]} 28. Nb3 {[%emt 0:02:06]} Qb2 {[%emt 0:00:37]} 29. Rf1 {[%emt 0:03:45]} Bd6 {[%emt 0:00:15]} 30. Rf2 {[%emt 0:00:49]} Qa3 {[%emt 0:00:44]} 31. Re2 {[%emt 0:00:49]} Qa6 {[%emt 0:00:55]} 32. Re6 {[%emt 0:02:31]} Rd8 {[%emt 0:00:44]} 33. Bg5 {[%emt 0:00:37]} Rdd7 {[%emt 0:01:32]} 34. Qf2 {[%emt 0:02:30]} b6 {[%emt 0:02:12]} 35. Re8+ {[%emt 0:01:01]} Rf8 {[%emt 0:00:47]} 36. Re6 {[%emt 0:00:50]} c5 {[%emt 0:01:11]} 37. Bh6 {[%emt 0:00:18]} Rff7 {[%emt 0:00:28]} 38. Re8+ {[%emt 0:00:07]} Bf8 {[%emt 0:00:21]} 39. Bg5 {[%emt 0:00:11]} c4 {[%emt 0:00:36]} 40. Nd4 {[%emt 0:00:12]} Kg7 {[%emt 0:00:51]} 41. Ne6+ {[%emt 0:00:19]} Kg8 {[%emt 0:01:05]} 42. Qh4 {[%emt 0:00:49]} h5 {[%emt 0:00:31]} 43. Bf6 {[%emt 0:00:16]} b5 {[%emt 0:00:42]} 44. Qg5 {[%emt 0:00:15]} Rd6 {[%emt 0:00:48]} 45. Qxg6+ {[%emt 0:00:11]} Rg7 {[%emt 0:00:43]} 46. Qxg7# {[%emt 0:00:08]} 1-0